fUST/lending_fUST_20260122
["ID","MTS","AMOUNT","RATE_DAILY","PERIOD"]
[403032019,1769092237933,-500.0,0.00016603,2]
[403032020,1769092237942,-500.0,0.00016603,2]
[403032021,1769092237952,-500.0,0.00016603,2]
[403032022,1769092237961,-500.0,0.00016603,2]
[403032023,1769092237973,-500.0,0.00016603,2]
[403032024,1769092237983,-500.0,0.00016603,2]
[403032025,1769092237992,-500.0,0.00016603,2]
[403032027,1769092238001,-500.0,0.00016603,2]
[403032029,1769092238011,-500.0,0.00016603,2]
[403032030,1769092238020,-500.0,0.00016603,2]
[403032032,1769092238029,-500.0,0.00016603,2]
[403032033,1769092238038,-500.0,0.00016603,2]
[403032034,1769092238048,-500.0,0.00016603,2]
[403032035,1769092238057,-270.76112508,0.00016603,2]
[403032037,1769092238067,-916.20274715,0.00016603,2]
[403032038,1769092238076,-916.20274715,0.00016603,2]
[403032039,1769092238085,-916.20274715,0.00016603,2]
[403032040,1769092238095,-916.20274715,0.00016603,2]
[403032041,1769092238104,-916.20274715,0.00016603,2]
[403032042,1769092238114,-916.20274715,0.00016603,2]
[403032044,1769092238123,-916.20274715,0.00016603,2]
[403032046,1769092238133,-916.20274715,0.00016603,2]
[403032048,1769092238143,-916.20274715,0.00016603,2]
[403032049,1769092238152,-916.20274715,0.00016603,2]
[403032050,1769092238164,-916.20274715,0.00016603,2]
[403032051,1769092238173,-916.20274715,0.00016603,2]
[403032052,1769092238183,-916.20274715,0.00016603,2]
[403032053,1769092238193,-916.20274715,0.00016603,2]
[403032054,1769092238202,-916.20274715,0.00016603,2]
[403032055,1769092238212,-916.20274715,0.00016603,2]
[403032056,1769092238221,-916.20274715,0.00016603,2]
[403032057,1769092238230,-916.20274715,0.00016603,2]
[403032058,1769092238240,-916.20274715,0.00016603,2]
[403032059,1769092238249,-916.20274715,0.00016603,2]
[403032060,1769092238259,-916.20274715,0.00016603,2]
[403032061,1769092238269,-916.20274715,0.00016603,2]
[403032062,1769092238278,-916.20274715,0.00016603,2]
[403032063,1769092238288,-916.20274715,0.00016603,2]
[403032064,1769092238297,-916.20274715,0.00016603,2]
[403032065,1769092238307,-916.20274715,0.00016603,2]
[403032066,1769092238317,-916.20274715,0.00016603,2]
[403032067,1769092238326,-916.20274715,0.00016603,2]
[403032068,1769092238335,-916.20274715,0.00016603,2]
[403032069,1769092238345,-80.12253721,0.00016603,2]
[403032070,1769092238358,-462.24987711,0.00016603,2]
[403032071,1769092238370,-268.5,0.00016603,2]
[403032072,1769092238381,-105.33033283,0.00016603,2]
[403032073,1769092238391,-916.20274715,0.00016603,2]
[403032074,1769092238401,-916.20274715,0.00016603,2]
[403032075,1769092238411,-916.20274715,0.00016603,2]
[403032076,1769092238421,-916.20274715,0.00016603,2]
[403032077,1769092238431,-916.20274715,0.00016603,2]
[403032078,1769092238441,-916.20274715,0.00016603,2]
[403032079,1769092238451,-916.20274715,0.00016603,2]
[403032080,1769092238461,-916.20274715,0.00016603,2]
[403032081,1769092238471,-916.20274715,0.00016603,2]
[403032082,1769092238480,-916.20274715,0.00016603,2]
[403032083,1769092238490,-916.20274715,0.00016603,2]
[403032084,1769092238499,-916.20274715,0.00016603,2]
[403032085,1769092238509,-916.20274715,0.00016603,2]
[403032086,1769092238518,-916.20274715,0.00016603,2]
[403032087,1769092238528,-916.20274715,0.00016603,2]
[403032088,1769092238538,-916.20274715,0.00016603,2]
[403032089,1769092238547,-916.20274715,0.00016603,2]
[403032090,1769092238556,-916.20274715,0.00016603,2]
[403032091,1769092238566,-916.20274715,0.00016603,2]
[403032092,1769092238575,-916.20274715,0.00016603,2]
[403032093,1769092238585,-916.20274715,0.00016603,2]
[403032094,1769092238595,-916.20274715,0.00016603,2]
[403032095,1769092238604,-500.0,0.00016603,2]
[403032096,1769092238614,-500.0,0.00016603,2]
[403032097,1769092238623,-500.0,0.00016603,2]
[403032098,1769092238632,-499.24447936,0.00016603,2]
[403032099,1769092238641,-913.7265235,0.00016603,2]
[403032100,1769092238650,-913.7265235,0.00016603,2]
[403032101,1769092238660,-913.7265235,0.00016603,2]
[403032102,1769092238669,-913.7265235,0.00016603,2]
[403032103,1769092238679,-913.7265235,0.00016603,2]
[403032104,1769092238688,-913.7265235,0.00016603,2]
[403032105,1769092238697,-913.7265235,0.00016603,2]
[403032106,1769092238706,-913.7265235,0.00016603,2]
[403032107,1769092238716,-913.7265235,0.00016603,2]
[403032108,1769092238726,-913.7265235,0.00016603,2]
[403032109,1769092238735,-913.7265235,0.00016603,2]
[403032110,1769092238744,-913.7265235,0.00016603,2]
[403032111,1769092238754,-913.7265235,0.00016603,2]
[403032112,1769092238763,-913.7265235,0.00016603,2]
[403032113,1769092238773,-913.7265235,0.00016603,2]
[403032114,1769092238783,-913.7265235,0.00016603,2]
[403032115,1769092238792,-913.7265235,0.00016603,2]
[403032116,1769092238802,-913.7265235,0.00016603,2]
[403032117,1769092238811,-913.7265235,0.00016603,2]
[403032118,1769092238820,-913.7265235,0.00016603,2]
[403032119,1769092238829,-913.7265235,0.00016603,2]
[403032120,1769092238838,-913.7265235,0.00016603,2]
[403032121,1769092238848,-913.7265235,0.00016603,2]
[403032122,1769092238858,-913.7265235,0.00016603,2]
[403032123,1769092238867,-913.7265235,0.00016603,2]
[403032124,1769092238878,-913.7265235,0.00016603,2]
[403032125,1769092238887,-913.7265235,0.00016603,2]
[403032126,1769092238896,-913.7265235,0.00016603,2]
[403032127,1769092238907,-913.7265235,0.00016603,2]
[403032128,1769092238917,-913.7265235,0.00016603,2]
[403032129,1769092238926,-913.7265235,0.00016603,2]
[403032130,1769092238936,-917.35242239,0.00016603,2]
[403032131,1769092238945,-917.35242239,0.00016603,2]
[403032132,1769092238955,-917.35242239,0.00016603,2]
[403032133,1769092238967,-917.35242239,0.00016603,2]
[403032134,1769092238979,-917.35242239,0.00016603,2]
[403032135,1769092238989,-917.35242239,0.00016603,2]
[403032136,1769092239000,-917.35242237,0.00016603,2]
[403032137,1769092239011,-500.0,0.00016603,2]
[403032138,1769092239021,-500.0,0.00016603,2]
[403032139,1769092239031,-500.0,0.00016603,2]
[403032140,1769092239042,-500.0,0.00016603,2]
[403032141,1769092239052,-500.0,0.00016603,2]
[403032142,1769092239062,-500.0,0.00016603,2]
[403032143,1769092239071,-500.0,0.00016603,2]
[403032144,1769092239081,-500.0,0.00016603,2]
[403032145,1769092239092,-500.0,0.00016603,2]
[403032146,1769092239102,-500.0,0.00016603,2]
[403032147,1769092239111,-500.0,0.00016603,2]
[403032148,1769092239121,-500.0,0.00016603,2]
[403032149,1769092239131,-500.0,0.00016603,2]
[403032150,1769092239140,-500.0,0.00016603,2]
[403032151,1769092239150,-500.0,0.00016603,2]
[403032152,1769092239161,-500.0,0.00016603,2]
[403032153,1769092239171,-500.0,0.00016603,2]
[403032154,1769092239181,-500.0,0.00016603,2]
[403032155,1769092239191,-500.0,0.00016603,2]
[403032156,1769092239200,-500.0,0.00016603,2]
[403032157,1769092239210,-500.0,0.00016603,2]
[403032158,1769092239219,-500.0,0.00016603,2]
[403032159,1769092239229,-500.0,0.00016603,2]
[403032161,1769092239239,-500.0,0.00016603,2]
[403032162,1769092239248,-500.0,0.00016603,2]
[403032163,1769092239258,-500.0,0.00016603,2]
[403032164,1769092239268,-500.0,0.00016603,2]
[403032165,1769092239278,-500.0,0.00016603,2]
[403032166,1769092239288,-500.0,0.00016603,2]
[403032167,1769092239298,-500.0,0.00016603,2]
[403032168,1769092239307,-500.0,0.00016603,2]
[403032169,1769092239317,-500.0,0.00016603,2]
[403032170,1769092239327,-172.67361941,0.00016603,2]
[403032171,1769092239336,-500.0,0.00016603,2]
[403032172,1769092239347,-500.0,0.00016603,2]
[403032173,1769092239356,-500.0,0.00016603,2]
[403032174,1769092239367,-500.0,0.00016603,2]
[403032175,1769092239376,-500.0,0.00016603,2]
[403032176,1769092239387,-500.0,0.00016603,2]
[403032177,1769092239397,-500.0,0.00016603,2]
[403032178,1769092239408,-500.0,0.00016603,2]
[403032179,1769092239418,-500.0,0.00016603,2]
[403032180,1769092239428,-500.0,0.00016603,2]
[403032181,1769092239437,-500.0,0.00016603,2]
[403032182,1769092239447,-500.0,0.00016603,2]
[403032183,1769092239457,-500.0,0.00016603,2]
[403032184,1769092239466,-151.490956,0.00016603,2]
[403032185,1769092239476,-168.493841,0.00016603,2]
[403032187,1769092239485,-500.0,0.00016603,2]
[403032188,1769092239494,-78580.5863768,0.00016604,2]
[403032189,1769092239503,-500.0,0.00016877,2]
[403032190,1769092239513,-7394.20696831,0.00016948,2]
[403032191,1769092239523,-151.0,0.00016962,2]
[403032192,1769092239533,-461.67526834,0.00016962,2]
[403032194,1769092239543,-151.0,0.00016962,2]
[403032196,1769092239553,-151.0,0.00016962,2]
[403032198,1769092239563,-156.587,0.00016962,2]
[403032199,1769092239573,-152.79950989,0.00016962,2]
[403032201,1769092239582,-761.29341021,0.00016962,2]
[403032202,1769092239591,-168.3888056,0.00016962,2]
[403032203,1769092239601,-500.0,0.00016962,2]
[403032204,1769092239611,-500.0,0.00016962,2]
[403032205,1769092239620,-478.21424922,0.00016962,2]
[403032206,1769092239630,-1186.85273393,0.00016962,2]
[403032207,1769092239639,-7394.20696827,0.00017099,2]
[403032208,1769092239649,-500.0,0.00017151,2]
[403032209,1769092239660,-1011.70802119,0.00017233,2]
[403032210,1769092239669,-221.16023456,0.00017233,2]
[403032211,1769092239679,-7394.20696827,0.00017251,2]
[403032212,1769092239688,-1001.47290127,0.00017353,2]
[403032213,1769092239698,-500.0,0.00017388,2]
[403032214,1769092239708,-500.0,0.00017388,2]
[403032215,1769092239718,-202.82215594,0.00017388,2]
[403032216,1769092239727,-500.0,0.00017388,2]
[403032217,1769092239738,-500.0,0.00017388,2]
[403032218,1769092239747,-500.0,0.00017388,2]
[403032219,1769092239757,-500.0,0.00017388,2]
[403032220,1769092239766,-500.0,0.00017388,2]
[403032221,1769092239776,-500.0,0.00017388,2]
[403032222,1769092239785,-500.0,0.00017388,2]
[403032223,1769092239794,-500.0,0.00017388,2]
[403032224,1769092239804,-196.28260893,0.000174,2]
[403032225,1769092239813,-7394.20696827,0.00017402,2]
[403032226,1769092239823,-500.0,0.00017425,2]
[403032227,1769092239832,-347.01,0.00017432,2]
[403032228,1769092239842,-478.75725327,0.0001751,2]
[403032229,1769092239851,-159.95914663,0.0001751,2]
[403032230,1769092239861,-500.0,0.00017525,2]
[403032231,1769092239871,-606.87080711,0.00017525,2]
[403032232,1769092239881,-500.0,0.00017525,2]
[403032233,1769092239890,-500.0,0.00017525,2]
[403032234,1769092239900,-500.0,0.00017525,2]
[403032235,1769092239913,-500.0,0.00017525,2]
[403032236,1769092239923,-500.0,0.00017525,2]
[403032237,1769092239932,-500.0,0.00017525,2]
[403032238,1769092239942,-500.0,0.00017525,2]
[403032239,1769092239952,-500.0,0.00017525,2]
[403032240,1769092239962,-319.0,0.00017533,2]
[403032241,1769092239974,-151.766,0.0001754,2]
[403032242,1769092239984,-7394.20696827,0.00017553,2]
[403032243,1769092239995,-196.28260893,0.000176,2]
[403032244,1769092240004,-4070.4860767,0.00017623,2]
[403032245,1769092240014,-225.47,0.00017645,2]
[403032246,1769092240024,-245.12125587,0.00017653,2]
[403032247,1769092240034,-441.21826056,0.00017653,2]
[403032248,1769092240043,-783.60363076,0.00017653,2]
[403032249,1769092240053,-195.994826,0.00017653,2]
[403032250,1769092240063,-352.43789612,0.00017653,2]
[403032251,1769092240072,-209.71141804,0.00017653,2]
[403032252,1769092240082,-958.83324129,0.00017653,2]
[403032253,1769092240092,-1704.59242895,0.00017653,2]
[403032254,1769092240101,-420.23334765,0.00017653,2]
[403032255,1769092240112,-500.0,0.00017662,2]
[403032256,1769092240121,-500.0,0.00017662,2]
[403032257,1769092240131,-500.0,0.00017662,2]
[403032258,1769092240140,-500.0,0.00017662,2]
[403032259,1769092240150,-500.0,0.00017662,2]
[403032260,1769092240163,-500.0,0.00017662,2]
[403032261,1769092240172,-500.0,0.00017662,2]
[403032262,1769092240183,-500.0,0.00017662,2]
[403032263,1769092240192,-280.16060639,0.00017662,2]
[403032264,1769092240201,-500.0,0.00017662,2]
[403032265,1769092240210,-500.0,0.00017699,2]
[403032266,1769092240219,-203.44202424,0.00017782,2]
[403032267,1769092240229,-500.0,0.00017799,2]
[403032268,1769092240239,-500.0,0.00017799,2]
[403032269,1769092240249,-500.0,0.00017799,2]
[403032270,1769092240258,-627.19364382,0.00017799,2]
[403032271,1769092240267,-500.0,0.00017799,2]
[403032272,1769092240277,-500.0,0.00017799,2]
[403032273,1769092240286,-500.0,0.00017799,2]
[403032274,1769092240296,-500.0,0.00017799,2]
[403032275,1769092240305,-500.0,0.00017799,2]
[403032276,1769092240315,-423.04,0.00017836,2]
[403032277,1769092240324,-123897.61382878,0.00017865,2]
[403032278,1769092240335,-160.0,0.00017902,2]
[403032279,1769092240344,-160.0,0.00017902,2]
[403032280,1769092240354,-180.0,0.00017902,2]
[403032281,1769092240363,-225.47,0.00017919,2]
[403032282,1769092240373,-500.0,0.00017936,2]
[403032283,1769092240382,-186.60309037,0.00017936,2]
[403032284,1769092240392,-500.0,0.00017936,2]
[403032285,1769092240402,-500.0,0.00017936,2]
[403032286,1769092240413,-217.49733686,0.00017936,2]
[403032287,1769092240424,-500.0,0.00017936,2]
[403032288,1769092240433,-500.0,0.00017936,2]
[403032289,1769092240443,-440.85969556,0.00017936,2]
[403032290,1769092240453,-200.0,0.00017936,2]
[403032291,1769092240462,-500.0,0.00017973,2]
[403032292,1769092240471,-324.0,0.00017979,2]
[403032293,1769092240481,-518.87737048,0.00018,2]
[403032294,1769092240491,-500.000001,0.00018,3]
[403032295,1769092240501,-1170.59363685,0.00018,2]
[403032296,1769092240510,-1000.0,0.00018,2]
[403032297,1769092240519,-252.31910939,0.00018056,2]
[403032298,1769092240529,-250.98940023,0.00018056,2]
[403032299,1769092240538,-496.47127164,0.00018058,2]
[403032300,1769092240548,-166.0,0.00018063,2]
[403032301,1769092240557,-166.0,0.00018063,2]
[403032302,1769092240567,-348.0,0.00018063,2]
[403032303,1769092240576,-348.0,0.00018063,2]
[403032304,1769092240586,-348.0,0.00018063,2]
[403032305,1769092240596,-348.0,0.00018063,2]
[403032306,1769092240605,-348.0,0.00018063,2]
[403032307,1769092240615,-348.0,0.00018063,2]
[403032308,1769092240624,-348.0,0.00018063,2]
[403032309,1769092240634,-348.0,0.00018063,2]
[403032310,1769092240643,-348.0,0.00018063,2]
[403032311,1769092240652,-348.0,0.00018063,2]
[403032312,1769092240662,-166.0,0.00018063,2]
[403032313,1769092240672,-348.0,0.00018063,2]
[403032314,1769092240681,-348.0,0.00018063,2]
[403032315,1769092240692,-348.0,0.00018063,2]
[403032316,1769092240701,-348.0,0.00018063,2]
[403032317,1769092240710,-500.0,0.00018073,2]
[403032318,1769092240719,-500.0,0.00018073,2]
[403032319,1769092240729,-500.0,0.00018073,2]
[403032320,1769092240738,-500.0,0.00018073,2]
[403032321,1769092240747,-500.0,0.00018073,2]
[403032322,1769092240756,-3112.84496857,0.00018116,2]
[403032324,1769092240765,-420.0,0.0001814,2]
[403032325,1769092240774,-735.13864854,0.00018186,7]
[403032326,1769092240783,-225.47,0.00018193,2]
[403032327,1769092240792,-1170.59363685,0.000182,2]
[403032328,1769092240802,-500.0,0.0001821,2]
[403032329,1769092240811,-500.0,0.0001821,2]
[403032330,1769092240821,-500.0,0.0001821,2]
[403032331,1769092240831,-184.0260802,0.0001821,2]
[403032332,1769092240840,-500.0,0.0001821,2]
[403032333,1769092240850,-1680.0,0.00018231,2]
[403032334,1769092240859,-497.10444444,0.00018247,2]
[403032336,1769092240869,-153.0,0.00018247,2]
[403032337,1769092240878,-153.0,0.00018247,2]
[403032339,1769092240888,-153.0,0.00018247,2]
[403032340,1769092240898,-169.33117252,0.00018247,2]
[403032342,1769092240907,-166.0,0.00018247,2]
[403032344,1769092240921,-166.0,0.00018247,2]
[403032346,1769092240931,-348.0,0.00018298,2]
[403032347,1769092240940,-348.0,0.00018298,2]
[403032348,1769092240949,-348.0,0.00018298,2]
[403032350,1769092240961,-348.0,0.00018298,2]
[403032351,1769092240977,-348.0,0.00018298,2]
[403032352,1769092240986,-348.0,0.00018298,2]
[403032353,1769092240997,-348.0,0.00018298,2]
[403032354,1769092241006,-348.0,0.00018298,2]
[403032355,1769092241015,-348.0,0.00018298,2]
[403032356,1769092241024,-348.0,0.00018298,2]
[403032357,1769092241034,-348.0,0.00018298,2]
[403032358,1769092241046,-348.0,0.00018298,2]
[403032359,1769092241055,-348.0,0.00018298,2]
[403032360,1769092241064,-166.0,0.00018298,2]
[403032361,1769092241073,-168.69320681,0.00018298,2]
[403032362,1769092241083,-166.0,0.00018298,2]
[403032363,1769092241092,-166.0,0.00018298,2]
[403032364,1769092241102,-164.0,0.00018298,2]
[403032365,1769092241110,-172.0,0.00018298,2]
[403032366,1769092241119,-269.8138642,0.00018298,2]
[403032367,1769092241128,-166.0,0.00018298,2]
[403032368,1769092241137,-166.0,0.00018298,2]
[403032369,1769092241146,-158.0,0.00018298,2]
[403032370,1769092241155,-153.0,0.00018298,2]
[403032371,1769092241168,-158.0,0.00018298,2]
[403032372,1769092241177,-153.0,0.00018298,2]
[403032373,1769092241186,-158.0,0.00018298,2]
[403032374,1769092241196,-153.0,0.00018298,2]
[403032375,1769092241396,-158.0,0.00018298,2]
[403032376,1769092241406,-153.0,0.00018298,2]
[403032377,1769092241418,-158.0,0.00018298,2]
[403032378,1769092241428,-153.0,0.00018298,2]
[403032379,1769092241437,-158.0,0.00018298,2]
[403032380,1769092241446,-153.0,0.00018298,2]
[403032381,1769092241456,-177.0,0.00018298,2]
[403032382,1769092241465,-158.0,0.00018298,2]
[403032383,1769092241475,-153.0,0.00018298,2]
[403032384,1769092241484,-158.0,0.00018298,2]
[403032385,1769092241493,-177.0,0.00018298,2]
[403032386,1769092241503,-153.0,0.00018298,2]
[403032387,1769092241512,-158.0,0.00018298,2]
[403032388,1769092241522,-177.19812808,0.00018298,2]
[403032389,1769092241531,-153.0,0.00018298,2]
[403032390,1769092241540,-158.0,0.00018298,2]
[403032391,1769092241549,-158.0,0.00018298,2]
[403032392,1769092241559,-153.0,0.00018298,2]
[403032393,1769092241568,-158.0,0.00018298,2]
[403032394,1769092241578,-153.0,0.00018298,2]
[403032395,1769092241587,-158.0,0.00018298,2]
[403032396,1769092241596,-153.0,0.00018298,2]
[403032397,1769092241606,-153.0,0.00018298,2]
[403032398,1769092241615,-153.0,0.00018298,2]
[403032399,1769092241624,-153.0,0.00018298,2]
[403032400,1769092241634,-153.0,0.00018298,2]
[403032401,1769092241643,-153.0,0.00018298,2]
[403032402,1769092241652,-172.0,0.00018298,2]
[403032403,1769092241662,-207.77385416,0.00018298,2]
[403032404,1769092241671,-168.0,0.00018298,2]
[403032405,1769092241680,-168.0,0.00018298,2]
[403032406,1769092241689,-169.29227747,0.00018298,2]
[403032407,1769092241699,-500.0,0.00018347,2]
[403032408,1769092241709,-500.0,0.00018347,2]
[403032409,1769092241718,-485.24173094,0.00018347,2]
[403032410,1769092241727,-500.0,0.00018347,2]
[403032411,1769092241736,-1170.59363685,0.000184,2]
[403032412,1769092241746,-225.47,0.00018467,2]
[403032413,1769092241755,-1154.01,0.00018481,2]
[403032414,1769092241764,-500.0,0.00018484,2]
[403032415,1769092241773,-500.0,0.00018484,2]
[403032416,1769092241782,-500.0,0.00018484,2]
[403032417,1769092241791,-249.44411208,0.00018493,25]
[403032418,1769092241801,-1170.59363685,0.000185,2]
[403032419,1769092241810,-1000.0,0.000185,2]
[403032420,1769092241819,-779.0,0.000185,2]
[403032421,1769092241828,-177.0,0.0001852,2]
[403032422,1769092241837,-1041.66666667,0.0001854,2]
[403032423,1769092241846,-514.84070869,0.00018606,2]
[403032424,1769092241855,-500.0,0.00018621,2]
[403032425,1769092241863,-500.0,0.00018621,2]
[403032426,1769092241873,-180.0,0.00018621,2]
[403032427,1769092241882,-900.0,0.0001863,2]
[403032428,1769092241892,-221.10538867,0.0001864,2]
[403032429,1769092241901,-1170.59363685,0.000187,2]
[403032430,1769092241913,-225.48,0.00018741,2]
[403032431,1769092241922,-500.0,0.00018758,2]
[403032432,1769092241932,-500.0,0.00018758,2]
[403032433,1769092241941,-500.0,0.0001879,2]
[403032434,1769092241950,-500.0,0.0001879,2]
[403032435,1769092241960,-500.0,0.0001879,2]
[403032436,1769092241970,-322.80901406,0.0001879,2]
[403032437,1769092241981,-614.7672714,0.00018877,2]
[403032438,1769092241991,-500.0,0.00018895,2]
[403032439,1769092242000,-500.0,0.00018895,2]
[403032440,1769092242009,-779.04118243,0.000189,2]
[403032441,1769092242019,-303.10001603,0.000189,2]
[403032442,1769092242027,-500.0,0.00018946,2]
[403032443,1769092242037,-500.0,0.00018952,2]
[403032444,1769092242046,-11065.61333285,0.00019,2]
[403032445,1769092242055,-151.0,0.00019,2]
[403032446,1769092242064,-1000.0,0.00019,2]
[403032447,1769092242073,-487.0,0.00019,2]
[403032448,1769092242082,-576.84,0.00019,2]
[403032449,1769092242091,-1368.0,0.00019023,2]
[403032450,1769092242100,-417.0,0.00019023,2]
[403032451,1769092242109,-202.667,0.00019023,2]
[403032452,1769092242119,-500.0,0.00019032,2]
[403032453,1769092242128,-500.0,0.00019032,2]
[403032454,1769092242137,-303.10001603,0.00019089,2]
[403032455,1769092242146,-533.88981491,0.00019154,2]
[403032456,1769092242155,-500.0,0.00019169,2]
[403032457,1769092242168,-500.0,0.00019169,2]
[403032458,1769092242177,-4430.87,0.00019178,2]
[403032459,1769092242186,-198.936386,0.00019178,2]
[403032460,1769092242195,-198.936386,0.00019178,2]
[403032461,1769092242204,-198.936386,0.00019178,2]
[403032462,1769092242213,-198.936386,0.00019178,2]
[403032463,1769092242223,-198.936386,0.00019178,2]
[403032464,1769092242232,-198.936386,0.00019178,2]
[403032465,1769092242242,-198.936386,0.00019178,2]
[403032467,1769092242252,-198.936386,0.00019178,2]
[403032469,1769092242261,-198.936386,0.00019178,2]
[403032471,1769092242270,-198.936386,0.00019178,2]
[403032473,1769092242279,-198.936386,0.00019178,2]
[403032475,1769092242288,-198.936386,0.00019178,2]
[403032477,1769092242298,-198.936386,0.00019178,2]
[403032479,1769092242308,-198.936386,0.00019178,2]
[403032481,1769092242317,-198.936386,0.00019178,2]
[403032483,1769092242326,-198.936386,0.00019178,2]
[403032485,1769092242336,-198.936386,0.00019178,2]
[403032487,1769092242344,-198.936386,0.00019178,2]
[403032489,1769092242354,-198.936386,0.00019178,2]
[403032491,1769092242363,-198.936381,0.00019178,2]
[403032494,1769092242372,-1100.56916409,0.00019178,2]
[403032496,1769092242381,-150.13166595,0.00019206,32]
[403032499,1769092242390,-249.44411208,0.00019243,32]
[403032500,1769092242399,-303.10001603,0.00019278,2]
[403032503,1769092242412,-816.6968115,0.00019306,2]
[403032505,1769092242422,-500.0,0.00019306,2]
[403032506,1769092242431,-500.0,0.00019306,2]
[403032508,1769092242440,-166928.4811553,0.00019306,2]
[403032510,1769092242449,-500.0,0.00019443,2]
[403032512,1769092242459,-500.0,0.00019443,2]
[403032514,1769092242468,-303.10001603,0.00019467,2]
[403032516,1769092242477,-151.0,0.000195,2]
[403032518,1769092242486,-1000.0,0.000195,2]
[403032520,1769092242495,-2205.216703,0.000195,7]
[403032522,1769092242505,-6037.221476,0.00019563,7]
[403032524,1769092242515,-162.476191,0.00019563,7]
[403032526,1769092242524,-500.0,0.0001958,2]
[403032528,1769092242533,-162.085068,0.000196,7]
[403032530,1769092242542,-300.17862,0.000196,7]
[403032531,1769092242552,-177.323557,0.00019656,7]
[403032533,1769092242561,-2370.022456,0.00019656,7]
[403032534,1769092242570,-303.10001603,0.00019656,2]
[403032535,1769092242579,-170.1660024,0.00019657,12]
[403032536,1769092242589,-4993.246863,0.00019699,7]
[403032537,1769092242598,-150.15,0.000197,2]
[403032538,1769092242608,-151.0,0.000197,2]
[403032539,1769092242617,-553.64373807,0.00019702,2]
[403032540,1769092242626,-634.0,0.00019717,2]
[403032541,1769092242634,-20661.491107,0.000198,7]
[403032543,1769092242643,-1960.011344,0.000198,7]
[403032544,1769092242652,-540.0,0.00019821,2]
[403032545,1769092242663,-1648.53,0.00019835,2]
[403032546,1769092242673,-1648.53,0.00019835,2]
[403032547,1769092242682,-1648.53,0.00019835,2]
[403032548,1769092242691,-1648.53,0.00019835,2]
[403032550,1769092242700,-1648.53,0.00019835,2]
[403032551,1769092242709,-1648.53,0.00019835,2]
[403032553,1769092242719,-1648.53,0.00019835,2]
[403032555,1769092242728,-1648.53,0.00019835,2]
[403032556,1769092242737,-1648.53,0.00019835,2]
[403032557,1769092242746,-1648.53,0.00019835,2]
[403032558,1769092242754,-1648.53,0.00019835,2]
[403032560,1769092242763,-1648.53,0.00019835,2]
[403032561,1769092242772,-1648.53,0.00019835,2]
[403032562,1769092242781,-1648.53,0.00019835,2]
[403032563,1769092242790,-1648.53,0.00019835,2]
[403032564,1769092242799,-1648.53,0.00019835,2]
[403032565,1769092242808,-1648.53,0.00019835,2]
[403032566,1769092242817,-1648.53,0.00019835,2]
[403032567,1769092242827,-1648.53,0.00019835,2]
[403032568,1769092242836,-1648.53,0.00019835,2]
[403032569,1769092242845,-1648.53,0.00019835,2]
[403032570,1769092242854,-1648.53,0.00019835,2]
[403032571,1769092242863,-1648.53,0.00019835,2]
[403032572,1769092242872,-1648.53,0.00019835,2]
[403032573,1769092242881,-1648.53,0.00019835,2]
[403032574,1769092242890,-1648.53,0.00019835,2]
[403032575,1769092242899,-1648.53,0.00019835,2]
[403032576,1769092242908,-1648.53,0.00019835,2]
[403032577,1769092242919,-1648.53,0.00019835,2]